{"text_format":"1","workbook":"xlsx","n_sheets":8,"sheets":["★計算シート","★提出用","★資料1）入所児童月別在席状況報告","複数施設加入法人用の名簿","（24h傷害②加入時必読）入所児童24h傷害②の名簿について","入所児童24h傷害②（提出用名簿）","（個人賠償加入時必読） 入所児童個人賠償補償の名簿について","入所児童個人賠償補償（提出用名簿）"],"not_rendered":{"charts":0,"images":0,"macros":1,"external_links":0,"defined_names":7,"comments":0,"pivot_tables":0},"unopened":[],"bounds":{"document_bytes":16777216,"sheet_cells":100000,"rows_first":2000,"rows_last":500,"rows_between":2000,"halvings":0,"cell_chars":16384,"cell_head_chars":4096},"cells_cut":0,"cells_raw":0,"read":"whole","date_system":"1900"}

{"sheet":"★計算シート","index":0,"n_rows":60,"n_cols":12,"rows_kept":60,"cut":false,"hidden":false,"merged":[[59,0,70,7],[57,5,57,7],[29,3,30,3],[56,5,56,7],[39,5,39,6],[55,5,55,7],[31,3,31,5],[31,6,31,7],[36,1,37,2],[33,1,34,2],[29,1,30,2],[29,0,37,0],[40,1,40,2],[0,0,1,7],[41,5,41,6],[33,3,34,3],[36,3,37,3],[27,5,27,6],[3,0,3,7],[9,0,9,7],[38,4,38,7],[11,0,11,7],[15,0,25,0],[6,0,6,7],[16,6,17,6],[5,0,5,7],[4,0,4,7],[13,0,13,7],[12,0,12,7],[14,0,14,3],[10,0,10,7],[8,0,8,7],[7,0,7,7],[16,2,17,2],[18,1,19,1],[24,1,25,2],[21,1,22,2],[16,1,17,1],[15,1,15,2],[20,1,20,7],[18,6,19,6]]}
["2024年度児童養護施設保険料計算シート",null,null,null,null,null,null,null,12,11,"2024年12"]
[null,null,null,null,null,null,null,null,1,10,"2025年1"]
[null,null,null,null,null,null,null,null,2,9,"2025年2"]
["「コンテンツの有効化」ボタンが表示されている場合は、「コンテンツの有効化」をクリック\n↓",null,null,null,null,null,null,null,3,8,"2025年3"]
["『資料1）入所児童月別在席状況報告シート』シートに入所児童月別在籍状況を入力\n(以下の緑色セルが自動入力される）。",null,null,null,null,null,null,null,4,7,"2025年4"]
["↓",null,null,null,null,null,null,null,5,6,"2025年5"]
["加入する月をプルダウンで選択後、ピンク色セルをプルダウンから選択。",null,null,null,null,null,null,null,6,5,"2025年6"]
["↓",null,null,null,null,null,null,null,7,4,"2025年7"]
["黄色セルを直接入力。",null,null,null,null,null,null,null,8,3,"2025年8"]
["↓",null,null,null,null,null,null,null,9,2,"2025年9"]
["『提出用』シートに必要項目を入力。（もしくは印刷して記入。）",null,null,null,null,null,null,null,10,1,"2025年10"]
["↓",null,null,null,null,null,null,null,11,12,"2024年11"]
["提出用・資料1のシートを出力。\n※入所児童24時間傷害補償②に加入の場合は名簿を併せて提出（「入所児童24h傷害補償の名簿について」を参照ください）。\n※個人賠償加入ありの場合は名簿を併せて提出（「入所児童個人賠償補償の名簿について」を参照ください）。",null,null,null,null,null,null,null,"残月数",{"$f":"VLOOKUP(E15,I1:J12,2,0)","v":12},{"$f":"VLOOKUP(E15,I1:K12,3,)","v":"2024年11"}]
["※提出用シートの「印刷」ボタンから印刷して下さい。加入申込票と資料1が自動的に印刷されます。"]
["加入する月をプルダウンで選択 ⇒",null,null,null,11,"月","複数施設を\n合算して申込　　⇒"]
["主契約セット","入所児童２４時間傷害補償\n※①②から選択ください。",null,null,"人数","保険料単価","加入口数（注４）","保険料"]
[null,"①","「児童養護施設・乳児院」の幼稚園・小学校・中学校・高等学校生","中学生以下児童\n（注１）",{"$f":"'★資料1）入所児童月別在席状況報告'!D27+'★資料1）入所児童月別在席状況報告'!E27+'★資料1）入所児童月別在席状況報告'!F27-'★資料1）入所児童月別在席状況報告'!D32","v":0},{"$f":"ROUND(1380*($J$13/12),0)","v":1380},null,{"$f":"E17*F17*G17","v":0}]
[null,null,null,"高等学校生児童\n（注１）",{"$f":"'★資料1）入所児童月別在席状況報告'!G27-'★資料1）入所児童月別在席状況報告'!D33","v":0},{"$f":"ROUND(1628*($J$13/12),0)","v":1628},null,{"$f":"E18*F18*G17","v":0}]
[null,"②\n（注2）","「小規模グループケア（本園ユニットケア・分園型）・地域小規模児童養護施設（グループホーム）、ファミリーホーム」の入所児童","児童数（注3）",{"$f":"'★資料1）入所児童月別在席状況報告'!D32+'★資料1）入所児童月別在席状況報告'!D33+'★資料1）入所児童月別在席状況報告'!D34","v":0},{"$f":"ROUND(3010*($J$13/12),0)","v":3010},null,{"$f":"E19*F19*G19","v":0}]
[null,null,"①の幼稚園～高等学校生以外","児童数（幼稚園～高等学校生以外）（注3）",null,{"$f":"ROUND(3010*($J$13/12),0)","v":3010},null,{"$f":"E20*F20*G19","v":0}]
[null,"（注1）「資料1）入所児童月別在席状況報告」シートより自動反映。幼稚園生、小学生、中学生、高等学校生の各々の年間平均人数合計。\n（注２）名簿の写が必要です。「入所児童24h傷害②の名簿について」を参照ください。\n（注３）入所児童２４時間傷害補償②の名簿人数（提出要）\n（注４）①②のうち加入されない補償項目には必ず加入口数に「０」をご入力ください。"]
[null,"施設賠償",null,null,"人数（注３）","コース","※エレベーター台数","保険料","↓施設賠分Ｐ参照キーの１つ","↓施設賠分変更Ｐ","↓昇降機分分変更Ｐ"]
[null,null,null,"定員",null,null,null,{"$f":"J23+K23","v":0},{"$f":"IF(ISBLANK($F$23),0,VLOOKUP(F23,$C$48:$L$50,10,0))","v":0},{"$f":"IF(OR(ISBLANK($E$23),ISBLANK($F$23)),0,ROUND(HLOOKUP(E23,$D$47:$K$50,I23,0)*J13/12,-1))","v":0},{"$f":"IF(ISBLANK($F$23),0,ROUND(VLOOKUP(F23,C53:D55,2,0)*J13/12*G23,-1))","v":0}]
[null,null,null,null,"（注３）施設の正式定員数（暫定ではありません。）"]
[null,"個人賠償\n*名簿の写が必要です。\n「入所児童個人賠償補償の名簿について」を参照ください。",null,null,"人数（注４）","保険料単価",null,"保険料"]
[null,null,null,"中学以上児童",{"$f":"'★資料1）入所児童月別在席状況報告'!F26+'★資料1）入所児童月別在席状況報告'!G26+'★資料1）入所児童月別在席状況報告'!I26+'★資料1）入所児童月別在席状況報告'!J26","v":0},{"$f":"ROUND(150*(J13/12),-1)","v":150},null,{"$f":"E26*F26","v":0}]
[null,null,null,null,"（注４）「入所児童月別在籍状況報告」で算出した人数\n"]
[null,null,null,null,null,"主契約保険料",null,{"$f":"H17+H18+H19+H20+H23+H26","v":0}]
[]
["任意契約","職員向け災害\n見舞金補償",null,"施設職員\n（ﾊﾟｰﾄ･ｱﾙﾊﾞｲﾄ含む）","※人数（注６）","保険料単価","加入口数","保険料"]
[null,null,null,null,null,{"$f":"ROUND(870*(J13/12),-1)","v":870},null,{"$f":"ROUND(E31*F31*G31,-1)","v":0}]
[null,null,null,"把握可能な最近の労働保険年度の終期　⇒"]
[null,null,null,null,"（注６）現在把握可能な最近の労働保険年度の平均被用者数。"]
[null,"短期入所等\n児童向傷害補償",null,"名簿人数","人数（注７）","保険料単価","加入口数","保険料"]
[null,null,null,null,null,{"$f":"ROUND(2120*(J13/12),-1)","v":2120},null,{"$f":"E35*F35*G35","v":0}]
[null,null,null,null,"（注７）短期入所児童の名簿人数（名簿備付要・提出不要）。"]
[null,"ﾎﾞﾗﾝﾃｨｱ・実習生向\n傷害補償",null,"最高稼動\n人数","人数（注８）","保険料単価","加入口数","保険料"]
[null,null,null,null,null,{"$f":"ROUND(2050*(J13/12),-1)","v":2050},null,{"$f":"E38*F38*G38","v":0}]
[null,null,null,null,"（注８）「一度に最大何名がボランティアおよび実習生として従事するか」の見込み人数（名簿備付要・提出不要）。"]
[null,null,null,null,null,"任意契約保険料",null,{"$f":"H31+H35+H38","v":0}]
[]
[null,null,null,null,null,"合計保険料",null,{"$f":"H28+H40","v":0}]
[]
[]
[]
[null,null,"＜施設賠償保険料＞"]
[null,null,"施設児童定員数","１０名まで","１１～３０名","３１～６０名","６１～７０名","７１～８０名","８１～９０名","９１～１００名","１０１名以上"]
[null,null,"Ａコース",23790,28540,32230,33990,36660,39420,42270,45230,2]
[null,null,"Ｂコース",26210,31440,36350,38150,40980,43910,46950,50080,3]
[null,null,"Ｃコース",28820,34590,39990,41980,45080,48310,51640,55060,4]
[]
[null,null,"＜昇降機保険料＞"]
[null,null,"Ａコース",3500]
[null,null,"Ｂコース",4240]
[null,null,"Ｃコース",4500]
[]
[]
[]
[]
["\nご入力ありがとうございました。\n\n■最後に各項目の入力人数・加入コース等のプルダウン誤りがないか・加入\n　口数（「0」の場合も「0」とご入力ください）のご確認をお願いいたします。\n\n■保険料のお振込みにあたりご請求書は原則発行いたしません。\n　保険料はパンフレット掲載の振込先へお振込みください。"]

{"sheet":"★提出用","index":1,"n_rows":52,"n_cols":9,"rows_kept":52,"cut":false,"hidden":false,"merged":[[2,6,2,8],[34,4,35,4],[4,1,4,8],[3,1,3,8],[21,7,22,7],[11,3,11,8],[13,3,13,8],[6,3,6,8],[7,3,7,5],[9,3,10,3],[19,1,30,1],[14,3,14,8],[15,3,15,8],[14,1,14,2],[15,1,15,2],[8,1,10,2],[48,1,51,1],[48,6,48,8],[49,4,49,5],[48,4,48,5],[41,4,42,4],[44,6,44,7],[50,6,50,8],[51,4,51,5],[51,7,51,8],[46,6,46,7],[49,6,49,8],[50,4,50,5],[34,1,42,1],[34,2,35,3],[38,2,39,3],[41,2,42,3],[6,1,7,2],[11,1,13,2],[19,8,20,8],[19,2,20,3],[19,4,20,4],[19,5,20,5],[19,6,20,6],[7,7,7,8],[8,3,8,5],[8,6,10,6],[8,7,8,8],[9,7,10,8],[48,2,51,3],[19,7,20,7],[21,2,22,2],[26,2,27,3],[29,2,30,3],[23,2,24,2],[23,7,24,7],[38,4,39,4],[32,6,32,7],[36,4,36,6],[36,7,36,8],[21,3,22,3]]}
[]
[null,"公益財団法人　児童育成協会　行"]
[null,null,null,null,null,null,"申込日：令和　　　年　　　月　　　日"]
[null,"「児童養護施設損害保険制度」加入申込票"]
[null,"下記事項に相違がないことを確認の上、「児童養護施設損害保険制度」の加入を申込みます。また、「職員向け災害見舞金補償」について、労働災害総合保険普通保険約款および特約の規定により、保険料の算出等に用いる正確な数値等を「職員向け災害見舞金補償」の施設職員数欄にて通知いたします。\n\n（ご注意）加入申込票には事実を正確にご回答（記入）ください。※印の項目は危険に関する重要な事項です。ご回答内容が事実と相違する場合または事実を記載しなかった場合はご契約を解除し、保険金をお支払いできないことがありますので十分にご確認のうえご回答（記入）ください。"]
[null,"（ご注意）フリガナも必ずご記入ください。"]
[null,"法人・施設名\n（注1）",null,"フリガナ"]
[null,null,null,null,null,null,"TEL\nFAX","（　　　　）　　　　－　　　　\n（　　　　）　　　　－　　　　"]
[null,"代表者名",null,"フリガナ",null,null,"担当者名","フリガナ"]
[]
[]
[null,"法人・施設住所",null,"フリガナ"]
[null,null,null,"〒　　　　－"]
[]
[null,"e-Mailアドレス"]
[null,"保険期間",null,{"$f":"CONCATENATE(★計算シート!K13,\"月1日～2025年11月1日\")","v":"2024年11月1日～2025年11月1日"}]
[null,"(注1)複数施設をまとめて申込される場合は、運営主体である法人等を記載ください。（「複数施設加入法人用の名簿」提出要）"]
[]
[null,"加入内容および保険料（保険金額・補償内容はパンフレットの通り）"]
[null,"主契約セット","入所児童２４時間補償\n※①②から選択ください。",null,null,"※人数","保険料単価","加入口数","保険料"]
[]
[null,null,"①","「児童養護施設・乳児院」の幼稚園・小学校・中学校・高等学校生","中学以下児童数（注2）",{"$f":"★計算シート!E17","v":0},{"$f":"★計算シート!F17","v":1380},{"$f":"★計算シート!G17","v":0},{"$f":"★計算シート!H17","v":0}]
[null,null,null,null,"高校児童数（注2）",{"$f":"★計算シート!E18","v":0},{"$f":"★計算シート!F18","v":1628},null,{"$f":"★計算シート!H18","v":0}]
[null,null,"②\n（注3）","「小規模グループケア（本園ユニットケア・分園型）・地域小規模児童養護施設（グループホーム）、ファミリーホーム」の入所児童","児童数（注4）",{"$f":"★計算シート!E19","v":0},3010,{"$f":"★計算シート!G19","v":0},{"$f":"★計算シート!H19","v":0}]
[null,null,null,"①の幼稚園～高等学校生以外","児童数（幼稚園～高等学校生以外）（注4）",{"$f":"★計算シート!E20","v":0},3010,null,{"$f":"★計算シート!H20","v":0}]
[]
[null,null,"施設賠償",null,null,"※人数","コース","※エレベーター台数","保険料"]
[null,null,null,null,"定員（注5）",{"$f":"★計算シート!E23","v":0},{"$f":"★計算シート!F23","v":0},{"$f":"★計算シート!G23","v":0},{"$f":"★計算シート!H23","v":0}]
[]
[null,null,"個人賠償\n※名簿の写が必要です。\n「入所児童個人賠償補償の名簿について」\nを参照ください。",null,null,"※人数","保険料単価",null,"保険料"]
[null,null,null,null,"中学以上児童数（注6）",{"$f":"★計算シート!E26","v":0},{"$f":"★計算シート!F26","v":150},null,{"$f":"★計算シート!H26","v":0}]
[]
[null,null,null,null,null,null,"主契約保険料",null,{"$f":"★計算シート!H28","v":0}]
[]
[null,"任意契約","職員向け災害\n見舞金補償",null,"施設職員数\n（ﾊﾟｰﾄ･ｱﾙﾊﾞｲﾄ含む）\n（注7）","※人数","保険料単価","加入口数","保険料"]
[null,null,null,null,null,{"$f":"★計算シート!E31","v":0},{"$f":"★計算シート!F31","v":870},{"$f":"★計算シート!G31","v":0},{"$f":"★計算シート!H31","v":0}]
[null,null,null,null,"把握可能な最近の労働保険年度の終期　⇒",null,null,{"$f":"IF(★計算シート!G32=\"\",\"職員向け災害 見舞金補償にご加入の場合は、計算シート上で入力ください。\",★計算シート!G32)","v":"職員向け災害 見舞金補償にご加入の場合は、計算シート上で入力ください。"}]
[]
[null,null,"短期入所等\n児童向傷害補償",null,"短期入所児童数（注8）","※人数","保険料単価","加入口数","保険料"]
[null,null,null,null,null,{"$f":"★計算シート!E35","v":0},{"$f":"★計算シート!F35","v":2120},{"$f":"★計算シート!G35","v":0},{"$f":"★計算シート!H35","v":0}]
[]
[null,null,"ﾎﾞﾗﾝﾃｨｱ・実習生向\n傷害補償",null,"最高稼動人数（注9）","※人数","保険料単価","加入口数","保険料"]
[null,null,null,null,null,{"$f":"★計算シート!E38","v":0},{"$f":"★計算シート!F38","v":2050},{"$f":"★計算シート!G38","v":0},{"$f":"★計算シート!H38","v":0}]
[]
[null,null,null,null,null,null,"任意契約保険料",null,{"$f":"★計算シート!H40","v":0}]
[]
[null,null,null,null,null,null,"合計保険料",null,{"$f":"★計算シート!H42","v":0}]
[]
[null,"※他の\n保険契約等","この保険契約で保険金のお支払対象となる損害を補償する他の保険契約等がある。（ありのときは右欄に記入。ない場合は「なし」となります。）",null,"保険会社",null,"保険金額・支払限度額"]
[]
[null,null,null,null,"保険種類",null,"過去3年間における事故"]
[null,null,null,null,null,null,null,"ありの場合　　　　　　　　回"]

{"sheet":"★資料1）入所児童月別在席状況報告","index":2,"n_rows":35,"n_cols":12,"rows_kept":35,"cut":false,"hidden":false,"merged":[[5,0,5,9],[34,8,36,9],[34,11,36,11],[34,6,36,7],[11,3,11,6],[11,7,11,9],[31,6,33,7],[31,8,33,11],[31,3,31,4],[32,3,32,4],[33,3,33,4],[34,1,35,5],[30,1,30,5]]}
[null,null,null,null,null,null,null,null,null,null,null,"資料１"]
[null,null,null,null,null,null,null,null,null,null,"施設所在地(都道府県名):"]
[]
[null,"公益財団法人　児童育成協会　行"]
[]
["入所児童月別在籍状況報告",null,null,null,null,null,null,null,null,null,null,"入所児童個人賠償保険料"]
[]
[null,"対象期間の入所児童数の内訳につき、下記の通りご報告いたします。"]
[]
[null,"　","対象期間：２０２３　 年　４月　１日　～　２０２４　年　３月　３１日　"]
[null,null,null,null,null,null,null,null,null,"＜単位：人＞"]
[null,null,null,"学校教育法上の学校在学児童（含む特別支援学校）",null,null,null,"左記以外の児童"]
[null,null,"入所児童数","幼稚園","小学校","中学校（◆）","高等学校（◆）","未就園児童\n(保育園児等)","専門学校等（◆）","短期入所の中学生以上の人数（◆）",null,"(始期時点の保険料が自動計算されます）\n中学生以上の入所児童数(◆印の合計)×150円"]
[1,"2023-04-01",{"$f":"SUM(D14:I14)","v":0},null,null,null,null,null,null,null,null,{"$f":"SUM(F14+G14+I14+J14)*150","v":0}]
[2,"2023-05-01",{"$f":"SUM(D15:I15)","v":0},null,null,null,null,null,null,null,null,{"$f":"SUM(F15+G15+I15+J15)*150","v":0}]
[3,"2023-06-01",0,null,null,null,null,null,null,null,null,{"$f":"SUM(F16+G16+I16+J16)*150","v":0}]
[4,"2023-07-01",0,null,null,null,null,null,null,null,null,0]
[5,"2023-08-01",0,null,null,null,null,null,null,null,null,0]
[6,"2023-09-01",0,null,null,null,null,null,null,null,null,0]
[7,"2023-10-01",0,null,null,null,null,null,null,null,null,0]
[8,"2023-11-01",0,null,null,null,null,null,null,null,null,0]
[9,"2023-12-01",0,null,null,null,null,null,null,null,null,0]
[10,"2024-01-01",0,null,null,null,null,null,null,null,null,0]
[11,"2024-02-01",0,null,null,null,null,null,null,null,null,0]
[12,"2024-03-01",{"$f":"SUM(D25:I25)","v":0},null,null,null,null,null,null,null,null,0]
[null,"１２ヶ月合計",{"$f":"SUM(C14:C25)","v":0},{"$f":"SUM(D14:D25)","v":0},0,0,0,0,0,0,null,{"$f":"SUM(F26+G26+I26+J26)*150","v":0}]
[null,"年間平均　　　　　　\n入所児童数",{"$f":"SUM(D27:I27)","v":0},{"$f":"ROUND(D26/12,0)","v":0},0,0,0,0,0,0]
[null,null,"※年間平均入所児童数の算出は小数点以下四捨五入により整数で記載。"]
[null,null,"※新設施設の場合は、直近の月別在籍者平均となります。詳細はMSK保険センターにお問合せください。"]
[]
[null,"★上記在籍状況報告の内、小規模ユニットケア、分園型、グループホーム、ファミリーホームに\n　在籍する児童数（入所児童24時間傷害補償②名簿記載の人数）※"]
[null,"①幼稚園～中学校生",null,null,null,"名","報告施設名：",null,""]
[null,"②高等学校生",null,null,null,"名"]
[null,"③幼稚園～高等学校生以外",null,null,null,"名"]
[null,"※①～③の合算人数が入所児童24時間傷害補償②（提出用名簿）のシートに表示された人数と一致することを確認してください。",null,null,null,null,"代表者名：",null,"",null,null,"㊞ "]

{"sheet":"複数施設加入法人用の名簿","index":3,"n_rows":6,"n_cols":5,"rows_kept":6,"cut":false,"hidden":false,"merged":[[2,2,2,4]]}
[null,"■複数施設加入法人用"]
[]
[null,null,"法人名※：　　"]
[null,null,"※複数施設をまとめて加入する運営主体名を記載ください"]
[]
[null,"施設名","住所","電話番号","施設の\n入所児童\n定員数"]

{"sheet":"（24h傷害②加入時必読）入所児童24h傷害②の名簿について","index":4,"n_rows":66,"n_cols":11,"rows_kept":66,"cut":false,"hidden":false,"merged":[[34,1,35,9],[1,1,1,9],[19,1,20,9],[15,1,16,9],[17,1,18,9],[5,1,6,9]]}
[]
[null,"入所児童２４時間傷害補償②の名簿について"]
[null,"■入所児童２４時間傷害補償②は、ご加入時に前年度の長期入所児童（措置児童）の名簿の写しのご提出が必要となっております。"]
[null,"■２０２４年度にご加入の場合、２０２３年４月１日～２０２４年３月３１日の期間が対象となります。"]
[null,"■個別の事情で氏名（フルネーム）を提出できない場合は、全児童に識別番号を設定のうえ、氏名の一部を塗りつぶして提出してください。"]
[null,"■原則、以下のひな形にご入力のうえご提出ください。施設独自の名簿をご使用の場合は、名簿の人数と加入申込票の人数（入所児童２４時間傷害補償②の加入人数）が一致して\n　いるか必ずご確認ください。"]
[]
[null,null,"入所児童24h傷害②（提出用名簿）"]
[]
[null,"★施設独自の名簿をご使用の場合の注意事項"]
[]
[null,"＜小規模ユニットケア、分園型、グループホーム、ファミリーホームの場合＞"]
[null,"■前年度の「全」長期入所児童（措置児童）の名簿の写しをご提出ください。"]
[]
[null,"＜小規模ユニットケア、分園型、グループホーム、ファミリーホームを除く「児童養護施設・乳児院」の場合＞"]
[null,"■原則、幼稚園～高等学校生「以外」の長期入所児童（措置児童）が入所児童２４時間傷害補償②の対象です。前年度の幼稚園～高等学校生「以外」の長期入所児童（措置児童）の名簿の写しをご提出ください。"]
[]
[null,"■幼稚園～高等学校生についても入院1日目からの補償をご希望で、入所児童２４時間傷害補償①ではなく入所児童２４時間傷害補償②に加入される場合は、全児童が入所児童２４時間傷害補償②の対象です。前年度の「全」長期入所児童（措置児童）の名簿の写しをご提出ください。"]
[]
[null,"■幼稚園以外（保育所、保育園、認定こども園等）に通う乳児等が在籍し、入所児童２４時間傷害補償①②両方に加入する施設は、名簿には入所児童２４時間傷害補償①の対象となる幼稚園～高等学校生を含めないでください。抜き出しが難しい場合は、対象者（幼稚園～高等学校生以外）がわかるようにして下さい。"]
[]
[null,"【ケース１】"]
[null,"名簿がエクセル等で電子データで加工ができる場合には、幼稚園～高等学校生「以外」を抜き出してください。"]
[]
[null,"ＮＯ","氏名","入所期間","生年月日",null,"ＮＯ","氏名","入所期間","生年月日"]
[null,1,"錦糸町　次郎","２０２３年１１月１日～２０２３年１２月３１日","xxxx年xx月xx日",null,3,"水天宮　五郎丸","２０２３年１１月１日～２０２３年１２月３１日","xxxx年xx月xx日"]
[null,2,"住吉　三太郎","２０２３年１１月１日～２０２３年１２月３１日","xxxx年xx月xx日",null,4,"三越　六実","２０２３年１２月１日～２０２４年１月３１日","xxxx年xx月xx日"]
[null,3,"水天宮　五郎丸","２０２３年１１月１日～２０２３年１２月３１日","xxxx年xx月xx日",null,6,"神保　八ノ助","２０２３年１２月１日～２０２４年１月３１日","xxxx年xx月xx日"]
[null,4,"三越　六実","２０２３年１２月１日～２０２４年１月３１日","xxxx年xx月xx日",null,7,"九段下　九郎","２０２３年１２月１日～２０２４年１月３１日","xxxx年xx月xx日"]
[null,5,"大手町　七菜子","２０２３年１２月１日～２０２４年１月３１日","xxxx年xx月xx日"]
[null,6,"神保　八ノ助","２０２３年１２月１日～２０２４年１月３１日","xxxx年xx月xx日"]
[null,7,"九段下　九郎","２０２３年１２月１日～２０２４年１月３１日","xxxx年xx月xx日"]
[]
[null,"【ケース２】"]
[null,"名簿が紙で幼稚園～高等学校生が混在している場合には名簿のコピーで幼稚園～高等学校生の部分を塗りつぶすか、幼稚園～高等学校生「以外」の方がわかるよう、余白などに〇をしてください。"]
[]
[null,null,null,null,null,null,"例１：　幼稚園～高等学生の部分を塗りつぶす"]
[null,"ＮＯ","氏名","入所期間","生年月日",null,"ＮＯ","氏名","入所期間","生年月日"]
[null,1,"錦糸町　次郎","２０２３年１１月１日～２０２３年１２月３１日","xxxx年xx月xx日",null,"錦糸町　次郎","２０２２年１１月１日～２０２２年１２月３１日","xxxx年xx月xx日","小学５年"]
[null,2,"住吉　三太郎","２０２３年１１月１日～２０２３年１２月３１日","xxxx年xx月xx日",null,"住吉　三太郎","２０２２年１１月１日～２０２２年１２月３１日","xxxx年xx月xx日","小学６年"]
[null,3,"水天宮　五郎丸","２０２３年１１月１日～２０２３年１２月３１日","xxxx年xx月xx日",null,3,"水天宮　五郎丸","２０２３年１１月１日～２０２３年１２月３１日","xxxx年xx月xx日"]
[null,4,"三越　六実","２０２３年１２月１日～２０２４年１月３１日","xxxx年xx月xx日",null,4,"三越　六実","２０２３年１２月１日～２０２４年１月３１日","xxxx年xx月xx日"]
[null,5,"大手町　七菜子","２０２３年１２月１日～２０２４年１月３１日","xxxx年xx月xx日",null,"大手町　七菜子","２０２２年１２月１日～２０２３年１月３１日","xxxx年xx月xx日","小学６年"]
[null,6,"神保　八ノ助","２０２３年１２月１日～２０２４年１月３１日","xxxx年xx月xx日",null,6,"神保　八ノ助","２０２３年１２月１日～２０２４年１月３１日","xxxx年xx月xx日"]
[null,7,"九段下　九郎","２０２３年１２月１日～２０２４年１月３１日","xxxx年xx月xx日",null,7,"九段下　九郎","２０２３年１２月１日～２０２４年１月３１日","xxxx年xx月xx日"]
[]
[null,null,null,null,null,null,"例２：　幼稚園～高等学校生「以外」の方がわかるよう、余白に〇をする。"]
[null,null,null,null,null,null,"ＮＯ","氏名","入所期間","生年月日"]
[null,null,null,null,null,null,1,"錦糸町　次郎","２０２３年１１月１日～２０２３年１２月３１日","xxxx年xx月xx日"]
[null,null,null,null,null,null,2,"住吉　三太郎","２０２３年１１月１日～２０２３年１２月３１日","xxxx年xx月xx日"]
[null,null,null,null,null,null,3,"水天宮　五郎丸","２０２３年１１月１日～２０２３年１２月３１日","xxxx年xx月xx日","〇"]
[null,null,null,null,null,null,4,"三越　六実","２０２３年１２月１日～２０２４年１月３１日","xxxx年xx月xx日","〇"]
[null,null,null,null,null,null,5,"大手町　七菜子","２０２３年１２月１日～２０２４年１月３１日","xxxx年xx月xx日"]
[null,null,null,null,null,null,6,"神保　八ノ助","２０２３年１２月１日～２０２４年１月３１日","xxxx年xx月xx日","〇"]
[null,null,null,null,null,null,7,"九段下　九郎","２０２３年１２月１日～２０２４年１月３１日","xxxx年xx月xx日","〇"]
[]
[]
[null,null,null,null,null,null,"例３：　幼稚園～高等学校生「以外」の方がわかるよう、氏名等に〇をする。"]
[null,null,null,null,null,null,"ＮＯ","氏名","入所期間","生年月日"]
[null,null,null,null,null,null,1,"錦糸町　次郎","２０２３年１１月１日～２０２３年１２月３１日","xxxx年xx月xx日"]
[null,null,null,null,null,null,2,"住吉　三太郎","２０２３年１１月１日～２０２３年１２月３１日","xxxx年xx月xx日"]
[null,null,null,null,null,null,3,"水天宮　五郎丸","２０２３年１１月１日～２０２３年１２月３１日","xxxx年xx月xx日"]
[null,null,null,null,null,null,4,"三越　六実","２０２３年１２月１日～２０２４年１月３１日","xxxx年xx月xx日"]
[null,null,null,null,null,null,5,"大手町　七菜子","２０２３年１２月１日～２０２４年１月３１日","xxxx年xx月xx日"]
[null,null,null,null,null,null,6,"神保　八ノ助","２０２３年１２月１日～２０２４年１月３１日","xxxx年xx月xx日"]
[null,null,null,null,null,null,7,"九段下　九郎","２０２３年１２月１日～２０２４年１月３１日","xxxx年xx月xx日"]

{"sheet":"入所児童24h傷害②（提出用名簿）","index":5,"n_rows":10,"n_cols":5,"rows_kept":10,"cut":false,"hidden":false,"merged":[[6,1,7,4],[3,3,3,4]]}
[]
[null,"■入所児童24時間傷害補償②　加入施設用"]
[]
[null,null,"施設名：　　"]
[]
[null,"人数：",{"$f":"COUNTA(C11:C1048576)","v":0}]
[null,"※上記人数が加入申込票の入所児童２４時間傷害補償②の加入人数と一致することを必ずご確認ください。"]
[]
[]
[null,"Ｎｏ","氏名","入所期間","生年月日"]

{"sheet":"（個人賠償加入時必読） 入所児童個人賠償補償の名簿について","index":6,"n_rows":57,"n_cols":11,"rows_kept":57,"cut":false,"hidden":false,"merged":[[1,1,1,9]]}
[]
[null,"入所児童個人賠償補償の名簿について"]
[null,"■入所児童個人賠償補償は、ご加入時に前年度の中学生以上の名簿の写しのご提出が必要となっております。"]
[null,"■２０２４年度にご加入の場合、２０２３年４月１日～２０２４年３月３１日の期間が対象となります。"]
[null,"■個別の事情で氏名（フルネーム）を提出できない場合は、全児童に識別番号を設定のうえ、氏名の一部を塗りつぶして提出してください。"]
[null,"■中学生以上の方がわかるようにして下さい。"]
[]
[null,"【ケース１】"]
[null,"名簿がエクセル等で電子データで加工ができる場合には、中学生以上を抜き出してください。"]
[]
[null,"氏名","入所期間","生年月日","学年",null,"氏名","入所期間","生年月日","学年"]
[null,"錦糸町　次郎","２０２３年１１月１日～２０２３年１２月３１日","xxxx年xx月xx日","小学５年",null,"水天宮　五郎丸","２０２３年１１月１日～２０２３年１２月３１日","xxxx年xx月xx日","高校１年"]
[null,"住吉　三太郎","２０２３年１１月１日～２０２３年１２月３１日","xxxx年xx月xx日","小学６年",null,"三越　六実","２０２３年１２月１日～２０２４年１月３１日","xxxx年xx月xx日","高校２年"]
[null,"水天宮　五郎丸","２０２３年１１月１日～２０２３年１２月３１日","xxxx年xx月xx日","高校１年",null,"神保　八ノ助","２０２３年１２月１日～２０２４年１月３１日","xxxx年xx月xx日","中学１年"]
[null,"三越　六実","２０２３年１２月１日～２０２４年１月３１日","xxxx年xx月xx日","高校２年",null,"九段下　九郎","２０２３年１２月１日～２０２４年１月３１日","xxxx年xx月xx日","中学２年"]
[null,"大手町　七菜子","２０２３年１２月１日～２０２４年１月３１日","xxxx年xx月xx日","小学６年"]
[null,"神保　八ノ助","２０２３年１２月１日～２０２４年１月３１日","xxxx年xx月xx日","中学１年"]
[null,"九段下　九郎","２０２３年１２月１日～２０２４年１月３１日","xxxx年xx月xx日","中学２年"]
[]
[]
[null,"【ケース２】"]
[null,"名簿が紙で小学生等が混在している場合には名簿のコピーで小学生以下の部分を塗りつぶすか、中学生以上の方がわかるよう、余白などに〇をしてください。"]
[]
[null,null,null,null,null,null,"例１：　小学生以下の部分を塗りつぶす"]
[null,"氏名","入所期間","生年月日","学年",null,"氏名","入所期間","生年月日","学年"]
[null,"錦糸町　次郎","２０２３年１１月１日～２０２３年１２月３１日","xxxx年xx月xx日","小学５年",null,"錦糸町　次郎","２０２２年１１月１日～２０２２年１２月３１日","xxxx年xx月xx日","小学５年"]
[null,"住吉　三太郎","２０２３年１１月１日～２０２３年１２月３１日","xxxx年xx月xx日","小学６年",null,"住吉　三太郎","２０２２年１１月１日～２０２２年１２月３１日","xxxx年xx月xx日","小学６年"]
[null,"水天宮　五郎丸","２０２３年１１月１日～２０２３年１２月３１日","xxxx年xx月xx日","高校１年",null,"水天宮　五郎丸","２０２３年１１月１日～２０２３年１２月３１日","xxxx年xx月xx日","高校１年"]
[null,"三越　六実","２０２３年１２月１日～２０２４年１月３１日","xxxx年xx月xx日","高校２年",null,"三越　六実","２０２３年１２月１日～２０２４年１月３１日","xxxx年xx月xx日","高校２年"]
[null,"大手町　七菜子","２０２３年１２月１日～２０２４年１月３１日","xxxx年xx月xx日","小学６年",null,"大手町　七菜子","２０２２年１２月１日～２０２３年１月３１日","xxxx年xx月xx日","小学６年"]
[null,"神保　八ノ助","２０２３年１２月１日～２０２４年１月３１日","xxxx年xx月xx日","中学１年",null,"神保　八ノ助","２０２３年１２月１日～２０２４年１月３１日","xxxx年xx月xx日","中学１年"]
[null,"九段下　九郎","２０２３年１２月１日～２０２４年１月３１日","xxxx年xx月xx日","中学２年",null,"九段下　九郎","２０２３年１２月１日～２０２４年１月３１日","xxxx年xx月xx日","中学２年"]
[]
[null,null,null,null,null,null,"例２：　中学生以上の方がわかるよう、余白に〇をする。"]
[null,null,null,null,null,null,"氏名","入所期間","生年月日","学年"]
[null,null,null,null,null,null,"錦糸町　次郎","２０２３年１１月１日～２０２３年１２月３１日","xxxx年xx月xx日","小学５年"]
[null,null,null,null,null,null,"住吉　三太郎","２０２３年１１月１日～２０２３年１２月３１日","xxxx年xx月xx日","小学６年"]
[null,null,null,null,null,null,"水天宮　五郎丸","２０２３年１１月１日～２０２３年１２月３１日","xxxx年xx月xx日","高校１年","〇"]
[null,null,null,null,null,null,"三越　六実","２０２３年１２月１日～２０２４年１月３１日","xxxx年xx月xx日","高校２年","〇"]
[null,null,null,null,null,null,"大手町　七菜子","２０２３年１２月１日～２０２４年１月３１日","xxxx年xx月xx日","小学６年"]
[null,null,null,null,null,null,"神保　八ノ助","２０２３年１２月１日～２０２４年１月３１日","xxxx年xx月xx日","中学１年","〇"]
[null,null,null,null,null,null,"九段下　九郎","２０２３年１２月１日～２０２４年１月３１日","xxxx年xx月xx日","中学２年","〇"]
[]
[]
[null,null,null,null,null,null,"例３：　中学生以上の方がわかるよう、氏名に〇をする。"]
[null,null,null,null,null,null,"氏名","入所期間","生年月日","学年"]
[null,null,null,null,null,null,"錦糸町　次郎","２０２３年１１月１日～２０２３年１２月３１日","xxxx年xx月xx日","小学５年"]
[null,null,null,null,null,null,"住吉　三太郎","２０２３年１１月１日～２０２３年１２月３１日","xxxx年xx月xx日","小学６年"]
[null,null,null,null,null,null,"水天宮　五郎丸","２０２３年１１月１日～２０２３年１２月３１日","xxxx年xx月xx日","高校１年"]
[null,null,null,null,null,null,"三越　六実","２０２３年１２月１日～２０２４年１月３１日","xxxx年xx月xx日","高校２年"]
[null,null,null,null,null,null,"大手町　七菜子","２０２３年１２月１日～２０２４年１月３１日","xxxx年xx月xx日","小学６年"]
[null,null,null,null,null,null,"神保　八ノ助","２０２３年１２月１日～２０２４年１月３１日","xxxx年xx月xx日","中学１年"]
[null,null,null,null,null,null,"九段下　九郎","２０２３年１２月１日～２０２４年１月３１日","xxxx年xx月xx日","中学２年"]
[]
[null,"【ケース３】"]
[null,"上記が難しい場合には下記のひな形に入力のうえご提出ください。"]
[null,"ひな型はこちら：","入所児童個人賠償補償（提出用名簿）"]

{"sheet":"入所児童個人賠償補償（提出用名簿）","index":7,"n_rows":6,"n_cols":6,"rows_kept":6,"cut":false,"hidden":false,"merged":[[3,3,3,5]]}
[]
[null,"■入所児童個人賠償補償　加入施設用"]
[]
[null,null,null,"施設名：　　"]
[]
[null,"Ｎｏ","氏名","入所期間","生年月日","学年"]